Workbook

Sheet Feuil1
A1: Taille octet | B1: Bits | C1: Valeurs possibles | D1: Décompo + | E1: Décompo - | G1: Taille en octet | H1: Bits | I1: Valeurs possibles | J1: Décompo + | K1: Décompo - | L1: Chiffres max | M1: Chiffres symb
A2: 1 | B2: 8 | C2: =2^B2 -> 256 | G2: 1 | H2: =H4/G4 -> 8
A3: =A2+1 -> 2 | B3: =A3*B2/A2 -> 16 | C3: =2^B3 -> 65,536 | D3: =C3/2-1 -> De 0 à 32,767 | E3: =C3/2 -> De -32,768 à -1 | G3: 28 | L3: =2^29 -> 536,870,912 | M3: ="2^29" -> 2^29
A4: =A3+1 -> 3 | B4: 24 | G4: 28 | H4: =G4*B2 -> 224 | I4: =L4*2+1 -> 2,147,483,647 | J4: =L4 -> De 0 à 1,073,741,823 | K4: =J4 -> De -1,073,741,823 à -1 | L4: =2^30-1 -> 1,073,741,823 | M4: 2^32-1 | O4: =I4*2 -> 4,294,967,294
B5: 31 | C5: =2^B5 -> 2,147,483,648 | G5: 32 | J5: De 0 à 1 152 921 504 606 846 975 | K5: De -1 152 921 504 606 846 975 à -1 | L5: 1 152 921 504 606 846 975 | M5: ="2^60-1" -> 2^60-1
A6: =A4+1 -> 4 | B6: =A6*B4/A4 -> 32 | C6: =2^B6 -> 4,294,967,296 | D6: =C6/2-1 -> De 0 à 2,147,483,647 | E6: =C6/2 -> De -2,147,483,648 à -1 | G6: 36
A7: =A6+1 -> 5 | B7: =A7*B6/A6 -> 40
A8: 6 | B8: =A8*B7/A7 -> 48
A9: 7 | B9: =A9*B8/A8 -> 56
A10: 8 | B10: =A10*B9/A9 -> 64
A11: 9 | B11: =A11*B10/A10 -> 72
A12: 10 | B12: =A12*B11/A11 -> 80
A13: 11 | B13: =A13*B12/A12 -> 88
A14: 12 | B14: =A14*B13/A13 -> 96
A15: 13 | B15: =A15*B14/A14 -> 104
A16: 14 | B16: =A16*B15/A15 -> 112
A17: =A16+1 -> 15 | B17: =A17*B16/A16 -> 120
A18: =A17+1 -> 16 | B18: =A18*B17/A17 -> 128
A19: 17 | B19: =A19*B18/A18 -> 136
A20: 18 | B20: =A20*B19/A19 -> 144
A21: 19 | B21: =A21*B20/A20 -> 152
A22: 20 | B22: =A22*B21/A21 -> 160
A23: 21 | B23: =A23*B22/A22 -> 168
A24: 22 | B24: =A24*B23/A23 -> 176
A25: 23 | B25: =A25*B24/A24 -> 184
A26: =A25+1 -> 24 | B26: =A26*B25/A25 -> 192
A27: =A26+1 -> 25 | B27: =A27*B26/A26 -> 200
A28: 26 | B28: =A28*B27/A27 -> 208
A29: 27 | B29: =A29*B28/A28 -> 216
A30: 28 | B30: =A30*B29/A29 -> 224 | C30: =2^B30 -> 2.695994667e+67
A31: =A30+1 -> 29 | B31: =A31*B30/A30 -> 232
A32: =A31+1 -> 30 | B32: =A32*B31/A31 -> 240
A33: 31 | B33: =A33*B32/A32 -> 248
A34: 32 | B34: =A34*B33/A33 -> 256
